bitfinex/quotes_ETHUSD_20230116
["timestamp","ask_amount","ask_price","bid_price","bid_amount"]
[1673910290558,1.00211691,1579.4,1579.1,9.33267]
[1673910290733,1.00211691,1579.4,1579.1,9.39407001]
[1673910291095,0.04711691,1579.4,1579.1,9.39407001]
[1673910291309,0.04711691,1579.4,1579.1,17.64412919]
[1673910291523,0.04711691,1579.4,1579.2,1.76441292]
[1673910291845,0.04711691,1579.4,1579.3,6.33191]
[1673910292054,0.04711691,1579.4,1579.3,9.39331001]
[1673910292701,0.04711691,1579.4,1579.3,3.06140001]
[1673910292907,0.04711691,1579.4,1579.3,3.0]
[1673910294667,0.04711691,1579.4,1579.2,3.06140001]
[1673910294875,0.04711691,1579.4,1579.2,3.0]
[1673910295842,0.04711691,1579.4,1579.1,0.06140001]
[1673910295843,3.16374098,1579.4,1579.1,0.06140001]
[1673910296192,3.43299817,1579.3,1579.0,0.06140001]
[1673910296379,3.43299817,1579.3,1578.8,20.33106001]
[1673910296380,7.11475121,1579.3,1578.8,20.33106001]
[1673910296563,7.18075121,1579.3,1578.8,20.33106001]
[1673910296977,7.18075121,1579.3,1578.8,12.72866001]
[1673910298384,7.18075121,1579.3,1578.9,3.0]
[1673910298585,3.49899817,1579.3,1578.9,3.0]
[1673910298797,3.43299817,1579.3,1578.9,3.0]
[1673910300166,0.11311691,1579.4,1578.9,3.0]
[1673910300372,0.04711691,1579.4,1579.3,6.33191]
[1673910300582,0.04711691,1579.4,1579.3,9.39331001]
[1673910300788,0.04711691,1579.4,1579.3,10.03964919]
[1673910301220,0.04711691,1579.4,1579.3,16.37155919]
[1673910301428,0.04711691,1579.4,1579.3,18.76911311]
[1673910301654,0.04711691,1579.4,1579.3,21.69611311]
[1673910302223,0.04711691,1579.4,1579.3,21.04977393]
[1673910303437,1.00211691,1579.4,1579.3,3.06140001]
[1673910303650,1.00211691,1579.4,1579.2,3.06140001]
[1673910303905,1.00211691,1579.4,1579.2,3.0]
[1673910304792,0.04711691,1579.4,1579.2,3.0]
[1673910307214,0.04711691,1579.4,1579.2,17.10181384]
[1673910307450,0.04711691,1579.4,1579.3,17.24900138]
[1673910307665,0.04711691,1579.4,1579.3,17.31040139]
[1673910307892,0.04711691,1579.4,1579.3,18.81040139]
[1673910309350,0.04711691,1579.4,1579.3,20.37640139]
[1673910316055,0.00011691,1579.4,1579.3,28.09821849]
[1673910316271,0.00011691,1579.4,1579.3,30.51987868]
[1673910317295,0.0009788,1579.5,1579.4,14.16302]
[1673910317511,1.99417888,1580.0,1579.4,31.44099541]
[1673910317722,0.05767946,1580.0,1579.9,1.434]
[1673910317990,0.05767946,1580.0,1579.9,20.42253]
[1673910318202,0.05767946,1580.0,1579.9,9.39091001]
[1673910318411,0.05767946,1580.0,1579.9,3.06140001]
[1673910318721,0.05767946,1580.0,1579.9,3.0]
[1673910318935,0.05767946,1580.0,1579.9,15.65902]
[1673910319247,0.05767946,1580.0,1579.9,15.72042001]
[1673910321859,0.05767946,1580.0,1579.9,18.06854801]
[1673910323269,0.05767946,1580.0,1579.9,15.72042001]
[1673910323452,1.01267946,1580.0,1579.9,0.06140001]
[1673910323784,1.01267946,1580.0,1579.8,0.06140001]
[1673910323972,1.01267946,1580.0,1579.7,7.82462001]
[1673910324628,2.51902735,1580.0,1579.7,6.39171001]
[1673910324994,1.01267946,1580.0,1579.7,6.39171001]
[1673910326420,0.05767946,1580.0,1579.7,7.82971001]
[1673910326611,0.05767946,1580.0,1579.7,14.16002001]
[1673910327734,0.99797197,1580.0,1579.7,14.16002001]
[1673910330161,0.94029251,1579.9,1579.7,7.82971001]
[1673910330811,0.94029251,1579.9,1579.7,6.39171001]
[1673910335616,2.40856309,1580.0,1579.7,8.73975801]
[1673910337230,2.40856309,1580.0,1579.7,15.07006801]
[1673910337440,0.94029251,1579.9,1579.7,15.07006801]
[1673910337709,2.35856309,1580.0,1579.7,15.07006801]
[1673910338191,2.35856309,1580.0,1579.7,16.51106801]
[1673910338336,0.94029251,1579.9,1579.7,16.51106801]
[1673910338548,0.94029251,1579.8,1579.7,0.06140001]
[1673910338761,0.94029251,1579.8,1579.6,10.83274001]
[1673910339020,2.35088363,1579.9,1579.6,17.16345001]
[1673910339215,0.94029251,1579.9,1579.7,1.435]
[1673910339386,0.94029251,1579.9,1579.8,12.65982]
[1673910339601,0.94229251,1579.9,1579.8,12.71922001]
[1673910339864,0.94797197,1580.0,1579.8,14.16222001]
[1673910340055,0.00967946,1580.0,1579.9,5.851222]
[1673910340261,0.00767946,1580.0,1579.9,12.24213201]
[1673910341386,0.00767946,1580.0,1579.9,20.07164201]
[1673910343826,0.00767946,1580.0,1579.9,18.57164201]
[1673910344888,0.00067946,1580.0,1579.9,18.57164201]
[1673910345104,0.00067946,1580.0,1579.9,20.01264201]
[1673910345316,0.00067946,1580.0,1579.9,21.51264201]
[1673910348097,0.00067946,1580.0,1579.9,20.07764201]
[1673910353501,0.00067946,1580.0,1579.9,18.57764201]
[1673910358781,0.00067946,1580.0,1579.9,20.07764201]
[1673910359121,0.00067946,1580.0,1579.9,24.76485121]
[1673910359332,0.00067946,1580.0,1579.9,20.07764201]
[1673910363229,0.99993155,1580.2,1580.0,0.00270626]
[1673910363382,0.99993155,1580.2,1580.1,9.25771]
[1673910363593,0.99993155,1580.2,1580.1,12.31911001]
[1673910363907,0.99993155,1580.2,1580.1,18.64782001]
[1673910364861,0.99993155,1580.2,1580.1,6.41638148]
[1673910365443,3.76883179,1580.2,1580.1,1.98738148]
[1673910365737,3.76883179,1580.2,1580.1,0.42598147]
[1673910367413,2.35824067,1580.2,1580.1,0.38338333]
[1673910368141,7.81298902,1580.2,1580.1,0.38338333]
[1673910368484,18.91275544,1580.2,1580.1,0.38338333]
[1673910368638,18.91275253,1580.2,1580.1,0.38338333]
[1673910368848,20.35375253,1580.2,1580.1,0.38338333]
[1673910370543,17.99798532,1580.2,1580.1,0.38338333]
[1673910370757,20.35414478,1580.2,1580.1,0.38338333]
[1673910371206,22.26151088,1580.2,1580.1,0.23686298]
[1673910371420,19.58717497,1580.2,1580.1,0.23686298]
[1673910371826,19.58717497,1580.2,1580.0,0.00270626]
[1673910371996,36.21294135,1580.1,1580.0,0.00270626]
[1673910372213,36.435131,1580.1,1580.0,0.00270626]
[1673910373057,32.16935122,1580.1,1580.0,0.00270626]
[1673910374059,33.61035122,1580.1,1580.0,0.00270626]
[1673910375108,55.99742121,1580.1,1579.5,1.56140001]
[1673910375273,6.17890508,1579.6,1579.3,0.06140001]
[1673910375487,6.17890508,1579.6,1579.1,0.1848476]
[1673910375488,0.94194747,1579.4,1579.1,0.1248476]
[1673910375732,3.11662407,1579.3,1579.1,0.1248476]
[1673910376261,3.11662407,1579.2,1579.1,0.1248476]
[1673910376476,16.92948122,1579.2,1579.1,0.1248476]
[1673910376794,16.99548122,1579.2,1579.1,0.1248476]
[1673910377037,12.6098,1579.2,1579.1,0.1248476]
[1673910382369,17.16742407,1579.2,1579.1,0.1248476]
[1673910382750,30.06206407,1579.2,1579.1,0.1248476]
[1673910383151,23.72974407,1579.2,1579.1,0.1248476]
[1673910383411,16.43761971,1579.2,1579.1,0.1248476]
[1673910383639,14.0508,1579.2,1579.1,0.1248476]
[1673910384300,23.72974407,1579.2,1579.1,0.1248476]
[1673910384515,17.39742407,1579.2,1579.1,0.1248476]
[1673910384725,12.6098,1579.2,1579.1,0.1248476]
[1673910384988,12.6098,1579.2,1579.1,0.77063436]
[1673910387174,12.6098,1579.2,1579.1,0.1248476]
[1673910388785,0.066,1579.2,1579.1,12.7902876]
[1673910389097,11.1247,1579.5,1579.1,12.7902876]
[1673910389098,11.1907,1579.5,1579.1,12.85168761]
[1673910389670,14.30732407,1579.5,1579.1,0.18624761]
[1673910389996,2.87173241,1579.4,1579.1,0.1248476]
[1673910391086,2.87373241,1579.4,1579.1,0.1248476]
[1673910391306,2.87173241,1579.4,1579.1,0.1248476]
[1673910391616,5.98835648,1579.4,1579.1,0.1248476]
[1673910391932,6.05435648,1579.4,1579.1,0.1248476]
[1673910399092,6.05435648,1579.4,1579.1,0.12213574]
[1673910400371,4.62362407,1579.4,1579.1,0.12213574]
[1673910400512,4.55762407,1579.4,1579.1,0.12213574]
[1673910404040,3.11662407,1579.4,1579.1,0.12213574]
[1673910405319,3.11662407,1579.3,1579.1,0.12213574]
[1673910406189,16.43682407,1579.3,1579.1,0.12213574]
[1673910406398,18.15310648,1579.3,1579.1,0.12213574]
[1673910406769,3.11662407,1579.2,1579.1,0.12213574]
[1673910407358,3.34662407,1579.2,1579.1,0.12213574]
[1673910410431,13.3862,1579.3,1579.1,0.12213574]
[1673910413561,13.3862,1579.3,1579.1,1.62213574]
[1673910414175,13.3862,1579.3,1579.1,3.15172802]
[1673910414385,13.3862,1579.3,1579.1,9.48434802]
[1673910414706,13.3862,1579.3,1579.1,9.54574803]
[1673910415695,0.066,1579.3,1579.2,16.62377185]
[1673910415911,13.31733308,1579.5,1579.2,22.44371329]
[1673910415912,13.07254747,1579.5,1579.2,22.44371329]
[1673910416064,13.07254747,1579.5,1579.4,6.33151]
[1673910416065,1.00794747,1579.5,1579.4,6.33151]
[1673910416285,0.94194747,1579.5,1579.4,6.39291001]
[1673910417075,2.35486867,1579.6,1579.4,6.39291001]
[1673910417428,0.94194747,1579.5,1579.4,6.39291001]
[1673910417675,0.94194747,1579.6,1579.4,16.99689201]
[1673910417891,0.94194747,1579.6,1579.4,15.42889201]
[1673910418224,1.4129212,1579.7,1579.6,12.66142]
[1673910418225,0.94194747,1579.7,1579.6,12.66142]
[1673910418384,0.94194747,1579.7,1579.6,12.72282001]
[1673910418804,1.4149212,1579.8,1579.6,12.72282001]
[1673910418805,2.35686867,1579.8,1579.6,12.72282001]
[1673910419032,0.94394747,1579.8,1579.7,4.272282]
[1673910419220,0.94394747,1579.8,1579.7,10.602592]
[1673910419435,0.94394747,1579.8,1579.7,16.99430201]
[1673910419436,0.002,1579.8,1579.7,16.99430201]
[1673910420223,0.002,1579.8,1579.7,18.42730201]
[1673910420950,0.002,1579.8,1579.7,16.99430201]
[1673910421372,0.002,1579.8,1579.7,16.99149472]
[1673910421590,0.002,1579.8,1579.7,10.66118472]
[1673910422768,0.002,1579.8,1579.7,16.99149472]
[1673910423318,0.002,1579.8,1579.7,10.66118472]
[1673910423960,1.89894747,1579.8,1579.7,0.06140001]
[1673910424182,1.89894747,1579.8,1579.5,12.72300001]
[1673910426002,0.94394747,1579.8,1579.5,12.72300001]
[1673910429291,0.002,1579.8,1579.5,12.72300001]
[1673910429452,0.002,1579.8,1579.5,14.22300001]
[1673910429661,0.002,1579.8,1579.5,16.57843201]
[1673910431545,0.002,1579.8,1579.6,1.5]
[1673910431796,0.002,1579.8,1579.7,6.33031]
[1673910432023,0.002,1579.8,1579.7,6.39171001]
[1673910434691,14.07424747,1579.9,1579.7,6.39171001]
[1673910435487,13.1323,1579.9,1579.7,6.39171001]
[1673910435654,13.1323,1579.9,1579.7,12.72202001]
[1673910436705,13.1323,1579.9,1579.7,6.39171001]
[1673910438752,13.1323,1579.9,1579.7,12.72202001]
[1673910439334,13.1323,1579.9,1579.7,13.75091664]
[1673910439542,0.066,1579.9,1579.7,13.75091664]
[1673910439755,0.08838378,1580.0,1579.7,13.75091664]
[1673910444119,0.08838378,1580.0,1579.7,0.06140001]
[1673910444329,0.08838378,1580.0,1579.7,3.0]
[1673910445087,0.08838378,1580.0,1579.7,9.33026]
[1673910445233,0.08838378,1580.0,1579.7,15.72197001]
[1673910446323,0.08626447,1580.0,1579.7,15.72197001]
[1673910446537,0.08626447,1580.0,1579.9,20.42053]
[1673910446740,0.08626447,1580.0,1579.9,23.48193001]
[1673910447212,0.08626447,1580.0,1579.9,22.04993001]
[1673910447427,0.08626447,1580.0,1579.9,3.06140001]
[1673910447690,1.04126447,1580.0,1579.8,6.39107001]
[1673910448739,0.08626447,1580.0,1579.8,6.39107001]
[1673910449101,1.02821194,1580.0,1579.8,6.39107001]
[1673910452211,1.02821194,1580.0,1579.8,12.72098001]
[1673910452412,1.02821194,1580.0,1579.8,14.92610401]
[1673910453446,0.08626447,1580.0,1579.8,14.92610401]
[1673910454043,0.08626447,1580.0,1579.8,8.59619401]
[1673910454255,2.44113314,1580.0,1579.8,6.39107001]
[1673910454722,0.94194747,1579.9,1579.8,6.39107001]
[1673910455656,0.94194747,1579.9,1579.8,12.72098001]
[1673910456057,0.93840088,1579.9,1579.8,12.72098001]
[1673910456386,1.49918567,1580.0,1579.8,12.72098001]
[1673910456566,1.49918567,1580.0,1579.8,6.39107001]
[1673910456984,1.49918567,1580.0,1579.8,12.72098001]
[1673910457217,1.49918567,1580.0,1579.8,6.39107001]
[1673910458271,1.49918567,1580.0,1579.8,12.72098001]
[1673910458897,1.49918567,1580.0,1579.8,14.92607001]
[1673910459131,0.08626447,1580.0,1579.9,3.0]
[1673910459349,0.08626447,1580.0,1579.9,9.32951]
[1673910459560,1.49918567,1580.0,1579.9,9.39091001]
[1673910459948,0.08626447,1580.0,1579.9,15.72042001]
[1673910460181,0.08626447,1580.0,1579.9,18.14593801]
[1673910463332,1.49918567,1580.0,1579.9,15.72042001]
[1673910463512,0.08626447,1580.0,1579.9,15.72042001]
[1673910463952,1.49918567,1580.0,1579.9,3.06140001]
[1673910464165,1.49918567,1580.0,1579.9,3.0]
[1673910464666,0.08626447,1580.0,1579.9,15.65902]
[1673910464871,0.08626447,1580.0,1579.9,19.51052901]
[1673910465082,0.08626447,1580.0,1579.9,22.58120715]
[1673910465929,0.08626447,1580.0,1579.9,24.61996522]
[1673910466139,0.00026447,1580.0,1579.9,27.73658929]
[1673910469757,0.00026447,1580.0,1579.9,24.12715308]
[1673910470664,0.00026447,1580.0,1579.9,21.01052901]
[1673910472501,0.00026447,1580.0,1579.9,20.51052901]
[1673910475762,0.00026447,1580.0,1579.9,19.01052901]
[1673910476941,0.00026447,1580.0,1579.9,25.73524322]
[1673910477404,0.00026447,1580.0,1579.9,26.68198031]
[1673910477615,0.00026447,1580.0,1579.9,25.73524322]
[1673910478053,0.00026447,1580.0,1579.9,27.16624322]
[1673910480832,0.00026447,1580.0,1579.9,27.16424322]
[1673910480997,0.00026447,1580.0,1579.9,27.16624322]
[1673910483308,0.00026447,1580.0,1579.9,25.1287253]
[1673910483511,0.00026447,1580.0,1579.9,23.55815308]
[1673910483741,0.00026447,1580.0,1579.9,27.16556791]
[1673910484420,0.00026447,1580.0,1579.9,25.12872589]
[1673910484713,0.00026447,1580.0,1579.9,27.16551155]
[1673910487503,0.066,1580.4,1580.0,0.957]
[1673910487732,0.04711691,1580.5,1580.3,1.428]
[1673910487980,0.99034494,1580.5,1580.4,12.65502]
[1673910488146,0.99034494,1580.5,1580.4,12.71642001]
[1673910489346,0.99034494,1580.5,1580.4,0.06140001]
[1673910489347,3.34398387,1580.5,1580.4,0.06140001]
[1673910489498,3.34398387,1580.5,1580.3,6.38913001]
[1673910489710,2.35530179,1580.4,1580.3,6.38913001]
[1673910489972,5.00056983,1580.4,1580.3,0.06140001]
[1673910490185,5.00056983,1580.4,1580.0,0.06340001]
[1673910490186,15.71355856,1580.4,1580.0,0.06340001]
[1673910490501,2.3561723,1580.2,1580.0,0.002]
[1673910490750,6.65088253,1580.1,1579.7,0.06140001]
[1673910490924,0.94236785,1579.9,1579.4,0.06140001]
[1673910491114,0.94236785,1579.9,1579.3,10.62126898]
[1673910491115,0.94236785,1579.7,1579.3,0.06140001]
[1673910491292,0.94236785,1579.7,1579.1,3.16348542]
[1673910491293,5.47268898,1579.6,1579.1,0.12213574]
[1673910491618,17.15439192,1579.5,1579.1,0.12213574]
[1673910491834,6.27306326,1579.4,1579.1,0.12213574]
[1673910492041,6.33906326,1579.4,1579.1,0.12213574]
[1673910492387,4.55762407,1579.3,1579.1,0.12213574]
[1673910492603,4.55762407,1579.2,1579.1,0.12213574]
[1673910492820,6.22762407,1579.2,1579.1,0.12213574]
[1673910492969,4.93703519,1579.2,1579.1,0.12213574]
[1673910493182,2.881,1579.2,1579.1,0.12213574]
[1673910493705,5.99762407,1579.2,1579.1,0.12213574]
[1673910494079,12.62594407,1579.2,1579.1,0.12213574]
[1673910495488,0.066,1579.2,1579.1,0.12213574]
[1673910495697,1.441,1579.3,1579.1,0.12213574]
[1673910495925,11.11994407,1579.2,1579.1,0.12213574]
[1673910496159,18.94826407,1579.2,1579.1,0.12213574]
[1673910500323,4.61262407,1579.2,1579.1,0.12213574]
[1673910500539,4.54662407,1579.2,1579.1,0.12213574]
[1673910500971,1.43,1579.2,1579.1,0.12213574]
[1673910506355,4.91962407,1579.2,1579.1,0.12213574]
[1673910506746,11.25194407,1579.2,1579.1,0.12213574]
[1673910506956,19.09126407,1579.2,1579.1,0.12213574]
[1673910507743,19.09126407,1579.2,1579.1,0.10452151]
[1673910510683,34.52926407,1579.2,1579.0,0.11841992]
[1673910510871,19.00056,1578.9,1578.7,0.12655305]
[1673910511233,20.45546407,1578.8,1578.5,0.1596877]
[1673910511545,1.441,1578.6,1578.5,0.1596877]
[1673910511712,0.23,1578.6,1578.5,0.1596877]
[1673910511924,15.61262407,1578.7,1578.5,0.1596877]
[1673910512435,12.496,1578.7,1578.5,0.1596877]
[1673910514158,13.9127,1578.7,1578.5,0.1596877]
[1673910514383,12.496,1578.7,1578.5,0.1596877]
[1673910521840,12.496,1578.7,1578.5,15.8298377]
[1673910522046,12.496,1578.7,1578.5,15.89123771]
[1673910523154,12.496,1578.7,1578.5,3.22108771]
[1673910523369,12.496,1578.7,1578.5,3.1596877]
[1673910527600,13.7456,1578.7,1578.5,0.1596877]
[1673910529352,12.496,1578.7,1578.5,0.1596877]
[1673910529770,12.496,1578.7,1578.5,12.8297277]
[1673910530138,12.496,1578.7,1578.5,12.89112771]
[1673910530293,12.496,1578.7,1578.5,6.55600771]
[1673910531771,12.496,1578.7,1578.5,0.22108771]
[1673910532041,12.496,1578.7,1578.5,0.1596877]
[1673910533309,13.7456,1578.7,1578.5,0.1596877]
[1673910535544,13.7456,1578.7,1578.5,0.15632979]
[1673910538667,12.496,1578.7,1578.5,0.15632979]
[1673910540749,12.496,1578.7,1578.5,12.82646979]
[1673910540963,12.496,1578.7,1578.5,12.8878698]
[1673910544438,12.496,1578.7,1578.6,1.5718951]
[1673910545437,12.496,1578.7,1578.5,12.8878698]
[1673910545586,12.496,1578.7,1578.6,1.57188897]
[1673910546062,12.496,1578.7,1578.6,1.57190484]
[1673910546282,12.496,1578.7,1578.6,1.57188977]
[1673910546793,0.066,1578.7,1578.6,1.57188977]
[1673910546985,22.6909,1578.9,1578.6,7.90660977]
[1673910547276,22.6909,1578.9,1578.6,6.39612001]
[1673910547427,28.17085085,1578.9,1578.6,6.39612001]
[1673910547605,28.17085085,1578.9,1578.6,0.06140001]
[1673910547606,20.1006187,1578.9,1578.6,0.06140001]
[1673910547817,21.51431576,1578.9,1578.5,6.5527498]
[1673910548075,4.55762407,1578.8,1578.5,0.2177298]
[1673910548271,5.50199192,1578.8,1578.5,0.15632979]
[1673910548460,0.55019919,1578.7,1578.5,0.15632979]
[1673910551019,3.11662407,1578.6,1578.5,0.15632979]
[1673910551178,12.55534407,1578.6,1578.5,0.15632979]
[1673910551391,12.62134407,1578.6,1578.5,0.15632979]
[1673910551707,13.56371192,1578.6,1578.5,0.15632979]
[1673910551915,16.38334774,1578.6,1578.5,0.15632979]
[1673910552559,25.0743348,1578.6,1578.5,0.15632979]
[1673910552912,24.13199925,1578.6,1578.5,0.15632979]
[1673910553133,22.7177673,1578.6,1578.5,0.15632979]
[1673910555541,7.66525989,1578.6,1578.5,0.15632979]
[1673910555751,3.18262407,1578.6,1578.5,0.15632979]
[1673910555902,3.11662407,1578.6,1578.5,0.15632979]
[1673910558062,0.61619919,1578.7,1578.5,0.15632979]
[1673910558280,3.66682326,1578.7,1578.5,0.15632979]
[1673910558424,0.066,1578.8,1578.5,0.15632979]
[1673910558737,3.11662407,1578.8,1578.5,0.15632979]
[1673910559178,4.05869148,1578.8,1578.5,0.15632979]
[1673910559627,3.11662407,1578.6,1578.5,0.15632979]
[1673910559837,3.11662407,1578.6,1578.5,0.1526865]
[1673910559838,19.58282854,1578.6,1578.5,0.1526865]
[1673910560051,18.93676113,1578.6,1578.5,0.1526865]
[1673910560265,18.46474463,1578.6,1578.5,0.1526865]
[1673910560425,19.98544124,1578.6,1578.5,0.1526865]
[1673910560851,20.92869853,1578.6,1578.5,0.1526865]
[1673910561099,20.92869853,1578.6,1578.5,8.65e-05]
[1673910561100,22.34038365,1578.6,1578.5,8.65e-05]
[1673910561286,22.36169853,1578.6,1578.4,0.1576877]
[1673910561497,6.19726532,1578.5,1578.4,0.1576877]
[1673910561706,21.2968321,1578.5,1578.4,0.1576877]
[1673910561915,21.71614606,1578.5,1578.4,0.1576877]
[1673910562571,22.65736454,1578.5,1578.4,0.1576877]
[1673910562963,21.24572329,1578.5,1578.4,0.1576877]
[1673910563520,22.65736454,1578.5,1578.4,0.1576877]
[1673910563710,23.59816433,1578.5,1578.4,0.1576877]
[1673910563894,22.65694585,1578.5,1578.4,0.1576877]
[1673910564107,21.71614606,1578.5,1578.4,0.1576877]
[1673910564526,22.18944266,1578.5,1578.4,0.1576877]
[1673910565097,26.59964376,1578.5,1578.4,0.1576877]
[1673910565943,28.04064376,1578.5,1578.4,0.1576877]
[1673910566157,33.27044266,1578.5,1578.4,0.1576877]
[1673910566302,34.6805395,1578.5,1578.4,0.1576877]
[1673910566834,34.7383295,1578.5,1578.4,0.1576877]
[1673910567047,36.14769333,1578.5,1578.4,0.1576877]
[1673910568525,36.14769333,1578.5,1578.3,0.1173754]
[1673910568721,22.21351278,1578.4,1578.3,0.1173754]
[1673910568931,22.09019882,1578.4,1578.3,0.1173754]
[1673910569196,21.86019882,1578.4,1578.3,0.1173754]
[1673910569353,20.9206926,1578.4,1578.3,0.1173754]
[1673910570246,14.5851726,1578.4,1578.3,0.1173754]
[1673910570457,13.1441726,1578.4,1578.3,0.1173754]
[1673910570820,13.0863826,1578.4,1578.3,0.1173754]
[1673910571678,19.4219026,1578.4,1578.3,0.1173754]
[1673910571892,13.3163826,1578.4,1578.3,0.1173754]
[1673910572665,19.6519026,1578.4,1578.3,0.1173754]
[1673910573513,19.6519026,1578.4,1578.3,0.0673754]
[1673910576714,19.6519026,1578.4,1578.3,0.0173754]
[1673910578166,21.0929026,1578.4,1578.3,0.0173754]
[1673910583096,22.03240882,1578.4,1578.3,0.0173754]
[1673910583320,22.61016941,1578.4,1578.3,0.0173754]
[1673910583930,22.6101255,1578.4,1578.3,0.0173754]
[1673910584133,21.0929026,1578.4,1578.3,0.0173754]
[1673910584983,22.03240882,1578.4,1578.3,0.0173754]
[1673910585847,22.61039659,1578.4,1578.3,0.0173754]
[1673910587218,24.01976042,1578.4,1578.3,0.0173754]
[1673910587382,30.65976042,1578.4,1578.3,0.0173754]
[1673910587750,32.83854439,1578.4,1578.3,0.00875419]
[1673910587944,32.89633439,1578.4,1578.3,0.00875419]
[1673910588326,34.77568163,1578.4,1578.3,0.00875419]
[1673910588873,32.89633439,1578.4,1578.3,0.00875419]
[1673910589312,33.33499629,1578.4,1578.3,0.00875419]
[1673910589695,30.98006408,1578.4,1578.3,0.00875419]
[1673910590068,31.45533439,1578.4,1578.3,0.00875419]
[1673910590373,31.45533439,1578.4,1578.3,0.00294036]
[1673910590953,33.35932083,1578.4,1578.0,1.01121731]
[1673910591197,5.96698735,1578.1,1578.0,1.01121731]
[1673910591391,31.60990735,1578.1,1578.0,1.01121731]
[1673910591701,32.18789512,1578.1,1578.0,1.01121731]
[1673910592348,31.71808533,1578.1,1578.0,1.01121731]
[1673910592909,22.19281407,1578.1,1578.0,1.01121731]
[1673910594263,24.78614085,1578.1,1578.0,1.01121731]
[1673910594873,24.78614085,1578.1,1578.0,0.91121731]
[1673910597816,18.44941085,1578.1,1578.0,0.91121731]
[1673910599151,19.85877413,1578.1,1578.0,0.91121731]
[1673910599356,20.43677143,1578.1,1578.0,0.91121731]
[1673910600828,19.85877413,1578.1,1578.0,0.91121731]
[1673910601031,21.37740987,1578.1,1578.0,0.91121731]
[1673910601246,10.68999251,1578.1,1578.0,0.91121731]
[1673910601892,17.49544735,1578.1,1578.0,0.91121731]
[1673910604619,18.43601398,1578.1,1578.0,0.91121731]
[1673910604940,10.6899207,1578.1,1578.0,0.91121731]
[1673910605352,17.0266507,1578.1,1578.0,0.91121731]
[1673910605607,19.56192559,1578.1,1578.0,0.91121731]
[1673910606858,20.03072224,1578.1,1578.0,0.91121731]
[1673910607087,20.97120544,1578.1,1578.0,0.91121731]
[1673910608048,19.56184216,1578.1,1578.0,0.91121731]
[1673910608350,13.22511216,1578.1,1578.0,0.91121731]
[1673910609134,19.56184216,1578.1,1578.0,0.91121731]
[1673910609557,13.22511216,1578.1,1578.0,0.91121731]
[1673910610414,12.28462896,1578.1,1578.0,0.91121731]
[1673910610645,13.22511216,1578.1,1578.0,0.86121731]
[1673910612035,12.28462896,1578.1,1578.0,0.86121731]
[1673910612549,3.18262407,1578.1,1578.0,0.86121731]
[1673910612785,3.11662407,1578.1,1578.0,0.86121731]
[1673910613618,1.00883087,1578.2,1578.0,0.86121731]
[1673910613839,0.00234767,1578.2,1578.1,1.429]
[1673910614136,9.45530174,1578.2,1578.0,2.29621731]
[1673910614356,3.11662407,1578.1,1578.0,0.86121731]
[1673910614541,10.39383727,1578.1,1578.0,0.86121731]
[1673910614721,10.45983727,1578.1,1578.0,0.86121731]
[1673910614941,12.9243464,1578.1,1578.0,0.86121731]
[1673910615400,19.72995648,1578.1,1578.0,0.86121731]
[1673910615573,21.60910752,1578.1,1578.0,0.86121731]
[1673910615781,21.83910752,1578.1,1578.0,0.86121731]
[1673910617291,20.42974424,1578.1,1578.0,0.86121731]
[1673910618194,21.00839397,1578.1,1578.0,0.86121731]
[1673910618450,21.00839397,1578.1,1577.7,0.18104417]
[1673910618451,19.57798632,1577.9,1577.7,0.18104417]
[1673910618685,19.57798632,1577.9,1577.2,0.2579012]
[1673910618686,21.65790297,1577.8,1577.2,0.2579012]
[1673910618829,3.11662407,1577.4,1577.2,0.1919012]
[1673910619042,3.11662407,1577.3,1577.2,0.1919012]
[1673910619243,9.24440072,1577.3,1576.7,0.11704523]
[1673910619454,3.11662407,1577.0,1576.7,1.46045971]
[1673910619716,3.11662407,1576.9,1576.7,0.05104523]
[1673910619932,3.11662407,1576.8,1576.7,0.05104523]
[1673910620084,3.11662407,1576.8,1576.7,1.46051877]
[1673910620441,3.11862407,1576.8,1576.7,0.05104523]
[1673910620769,3.11662407,1576.8,1576.7,0.05104523]
[1673910620987,3.43488648,1576.8,1576.7,0.05104523]
[1673910622001,0.066,1576.9,1576.7,1.00604523]
[1673910622236,0.066,1577.0,1576.7,2.44704523]
[1673910622404,3.11662407,1576.9,1576.7,2.44704523]
[1673910622704,6.46438,1577.2,1576.7,0.05104523]
[1673910622705,3.11662407,1576.8,1576.7,0.05104523]
[1673910623062,3.11662407,1576.8,1576.7,0.00104523]
[1673910623275,9.77683648,1576.8,1576.7,0.00104523]
[1673910623442,9.84283648,1576.8,1576.7,0.00104523]
[1673910623658,13.70430554,1576.8,1576.7,0.00104523]
[1673910623988,21.54504554,1576.8,1576.7,0.00104523]
[1673910624409,35.54504554,1576.8,1576.7,0.00104523]
[1673910624616,46.61804554,1576.8,1576.7,0.00104523]
[1673910624826,47.36551735,1576.8,1576.7,0.00104523]
[1673910625071,47.36551735,1576.8,1576.4,1.24680206]
[1673910625072,6.64,1576.6,1576.4,1.24680206]
[1673910625228,6.64,1576.6,1575.9,0.06]
[1673910625229,3.11662407,1576.1,1575.9,0.06]
[1673910625438,3.11662407,1576.1,1575.8,0.02662542]
[1673910625439,26.00342403,1576.0,1575.8,0.02662542]
[1673910625709,3.11662407,1575.9,1575.8,0.02662542]
[1673910625915,3.11330945,1575.9,1575.8,0.98162542]
[1673910626231,25.36984,1576.0,1575.9,1.5]
[1673910626232,0.066,1576.0,1575.9,1.5]
[1673910626494,3.11662407,1576.0,1575.9,1.89096254]
[1673910626622,3.11662407,1576.0,1575.9,1.5]
[1673910626826,3.11662407,1576.0,1575.8,0.02662542]
[1673910627098,3.11662407,1575.9,1575.8,0.02662542]
[1673910627420,9.46220407,1575.9,1575.8,0.02662542]
[1673910627587,3.18262407,1575.9,1575.8,0.02662542]
[1673910627792,3.11662407,1575.9,1575.8,0.02662542]
[1673910628047,0.066,1576.0,1575.8,1.45462542]
[1673910628197,18.54164,1576.4,1575.9,1.57846254]
[1673910628409,18.54164,1576.4,1575.8,0.02662542]
[1673910628410,9.46113407,1576.2,1575.8,0.02662542]
[1673910628676,3.11662407,1576.1,1575.8,0.02662542]
[1673910628909,3.11662407,1576.0,1575.8,0.02662542]
[1673910629200,6.34507,1576.1,1575.8,0.02662542]
[1673910629201,3.11662407,1575.9,1575.8,0.02662542]
[1673910630195,3.34662407,1575.9,1575.8,0.02662542]
[1673910630363,20.63486644,1575.9,1575.8,0.02662542]
[1673910630574,20.70086644,1575.9,1575.8,0.02662542]
[1673910630763,22.81344131,1575.9,1575.8,0.02662542]
[1673910631954,24.25444131,1575.9,1575.8,0.02662542]
[1673910632134,31.58024646,1575.9,1575.8,0.02662542]
[1673910632305,33.02124646,1575.9,1575.8,0.02662542]
[1673910632515,34.31392482,1575.9,1575.8,0.02662542]
[1673910632773,33.66758564,1575.9,1575.8,0.02662542]